Cogmind - Beta 14 @@@ ROGUE MODE // 2024.12.11 @ 17:52:32 Player: porter Result: Destroyed by G-34 Mercenary with Small Laser Performance ------------- Evolutions (0) 0 Regions Visited (1) 200 Robots Destroyed (8) 40 Value Destroyed (275) 275 Prototype IDs (0) 0 Alien Tech Used (0) 0 Bonus (0) 0 TOTAL SCORE: 515 Bonus ------- None Cogmind --------- Core Integrity 0/250 Matter 270/300 Energy 156/160 System Corruption 0% Temperature Cool (6) Movement Walking (190) Ox1 Location -10/Materials Parts ------- > --- POWER (1) -------- Light Nuclear Core > --- PROPULSION (2) --- Aluminum Leg > --- UTILITY (2) ------ Small Storage Unit > --- WEAPON (2) ------- Mining Claw > --- INVENTORY (8) ---- Light Ion Engine Mining Laser Mining Laser Peak State ------------ > --- POWER ------------ Ion Engine > --- PROPULSION ------- Aluminum Leg Aluminum Leg > --- UTILITY ---------- Small Storage Unit > --- WEAPON ----------- Assault Rifle Assault Rifle > --- INVENTORY -------- Light Ion Engine Light Nuclear Core Aluminum Leg Aluminum Leg Wheel Compact Wheel Light Assault Rifle Mining Laser [Rating: 7] Favorites ----------- Power Ion Engine Engine Ion Engine Power Core Light Nuclear Core Propulsion Aluminum Leg Leg Aluminum Leg Utility Small Storage Unit Storage Small Storage Unit Weapon Assault Rifle Ballistic Gun Assault Rifle Slashing Weapon Mining Claw Build | -11 -10 ------- Run | Yrd Mat Slots Evolved . | . . Power . | . . Propulsion . | . . Utility . | . . Weapon . | . . Parts Attached 12 | 7 5 Power 3 | 1 2 Engine 1 | 1 . Core 2 | . 2 Reactor . | . . Propulsion 4 | 2 2 Treads . | . . Leg 4 | 2 2 Wheel . | . . Hover . | . . Flight . | . . Utility 1 | 1 . Device . | . . Storage 1 | 1 . Processor . | . . Hackware . | . . Protection . | . . Artifact . | . . Weapon 4 | 3 1 Energy Gun . | . . Energy Cannon . | . . Ballistic Gun 3 | 3 . Ballistic Cannon . | . . Launcher . | . . Special Weapon . | . . Impact Weapon . | . . Slashing Weapon 1 | . 1 Piercing Weapon . | . . Special Melee Weapon . | . . Unidentified Prototypes . | . . Parts Lost 7 | . 7 Power 2 | . 2 Propulsion 3 | . 3 Utility . | . . Weapon 2 | . 2 Highest Loss Streak 7 | . 7 To Critical Strikes . | . . Average Slot Usage (%) 75 | . 75 Engine 11 | . 11 Core 1 | . 1 Leg 25 | . 25 Storage 14 | . 14 Ballistic Gun 21 | . 21 Peak Build Rating 7 | 6 7 Average Rating 5 | 5 5 On Entrance 3 | . 6 Naked Turns . | . . Heaviest Build 14 | 14 14 Greatest Support 20 | 20 20 Greatest Overweight (x) 4 | 4 3 Average Overweight (x) . | . . Largest Inventory Capacity 8 | 8 8 Average Capacity 7 | 7 8 Most Carried 8 | 6 8 Average Carried 5 | 5 5 Final Capacity 8 | 8 8 Final Carried 6 | 6 3 Class Distribution -------------------- 100% | Mutant Dominant Class ---------------- Mutant | -10/Materials Resources | -11 -10 ----------- Run | Yrd Mat Matter Collected 408 | 206 202 Remotely . | . . Salvage Created 373 | . 373 Parts 17 | . 17 Haulers Intercepted . | . . Recyclers Shooed . | . . Parts Field Recycled . | . . Retrieved Matter . | . . Parts Self-Destructed . | . . Prevented . | . . Kills | -11 -10 ------- Run | Yrd Mat Combat Hostiles Destroyed 6 | . 6 Guns 6 | . 6 Classes Destroyed 3 | . 3 Recycler 1 | . 1 Watcher 1 | . 1 Grunt 6 | . 6 Best Kill Streak 3 | . 3 Combat Bots Only 2 | . 2 Max Kills in Single Turn 1 | . 1 Gunslinging . | . . Exploded . | . . Melee . | . . Uniques/NPCs Destroyed . | . . Combat | -11 -10 -------- Run | Yrd Mat Hostile Shots Fired 113 | . 113 Missed 34 | . 34 Damage Taken 967 | . 967 Core 258 | . 258 Absorbed by Shields . | . . Core Remaining (%) 100 | 100 . Volleys Fired 30 | . 30 Largest 2 | . 2 Hottest 40 | . 40 Shots Fired 54 | . 54 Gun 54 | . 54 Cannon . | . . Launcher . | . . Special . | . . Kinetic 54 | . 54 Thermal . | . . Explosive . | . . Electromagnetic . | . . Robot Hit Streak 7 | . 7 Robot Miss Streak 2 | . 2 Penetration Max . | . . Secondary Targets . | . . Shots Hit Robots 38 | . 38 Core Hits 19 | . 19 Critical Kills 1 | . 1 Critical Parts Destroyed 1 | . 1 Critical Strikes 2 | . 2 Destroy 2 | . 2 Melee Attacks 6 | . 6 Impact . | . . Slashing 6 | . 6 Piercing . | . . Sneak Attacks . | . . Combat Hostiles . | . . Follow-up Attacks . | . . Damage Inflicted 606 | . 606 Guns 418 | . 418 Cannons . | . . Explosions 91 | . 91 Melee 92 | . 92 Ramming 5 | . 5 Kinetic 418 | . 418 Thermal . | . . Explosive . | . . Electromagnetic 91 | . 91 Impact . | . . Slashing 92 | . 92 Piercing . | . . Highest Corruption . | . . Average Corruption . | . . Corruption Purged . | . . Corruption Blocked . | . . Overload Shots . | . . Overflow Damage . | . . Projectiles . | . . Explosions . | . . Melee . | . . Knockbacks . | . . Impact . | . . Kinetic . | . . Secondary . | . . Self-Inflicted Damage 33 | . 33 Shots 1 | . 1 Rammed . | . . Targets Rammed 3 | . 3 Kicked 3 | . 3 Crushed . | . . Highest Temperature 20 | . 20 Average Temperature 4 | . 4 Received Heat Transfer 540 | . 540 Siege Activations . | . . Robots Corrupted . | . . Combat Hostiles . | . . Parts Fried 1 | . 1 Impact Corruptions . | . . Robots Melted . | . . Combat Hostiles . | . . Parts Melted . | . . Heat Transferred . | . . Parts Sabotaged . | . . Parts Stolen . | . . Parts Stripped . | . . Power Chain Reactions . | . . Alert | -11 -10 ------- Run | Yrd Mat Peak Influence 187 | . 187 Initial . | . . Average 9 | . 112 Maximum Alert Level . | . . Low Security (%) 100 | 100 100 Level 1 . | . . Level 2 . | . . Level 3 . | . . Level 4 . | . . Level 5 . | . . High Security . | . . Max Security . | . . Squads Dispatched 3 | . 3 Investigation 3 | . 3 Extermination . | . . Reinforcement . | . . Assault . | . . Garrison . | . . Intercept . | . . Searches Triggered . | . . Construction Impeded . | . . Haulers Reinforced . | . . Active Scanning Responses . | . . Cargo Convoy Interrupts . | . . Stealth | -11 -10 --------- Run | Yrd Mat Distress Signals . | . . Communications Jammed . | . . Distress Signals . | . . Times Spotted 18 | . 18 Peak Tracking Total 5 | . 5 Tactical Retreats . | . . Traps | -11 -10 ------- Run | Yrd Mat Traps Triggered 1 | . 1 Indirectly . | . . Trap Hack Attempts . | . . Triggered . | . . Disarmed . | . . Reprogrammed . | . . Reused . | . . Traps Extracted . | . . Installed . | . . Triggered . | . . Machines | -11 -10 ---------- Run | Yrd Mat Machines Disabled 2 | . 2 Max in Single Turn 1 | . 1 Machines Repaired . | . . Machines Dismantled . | . . Machines Sabotaged . | . . Overloaded Fab Kills . | . . Hacking | -11 -10 --------- Run | Yrd Mat Machines Accessed 3 | . 3 Terminals 2 | . 2 Fabricators . | . . Repair Stations . | . . Recycling Units 1 | . 1 Scanalyzers . | . . Garrison Access . | . . Total Hacks 9 | . 9 Successful 4 | . 4 Failed 5 | . 5 Catastrophic 3 | . 3 Database Lockouts . | . . Manual 6 | . 6 Terminals 6 | . 6 Fabricators . | . . Repair Stations . | . . Recycling Units 3 | . 3 Scanalyzers . | . . Garrison Access . | . . Terminal Hacks 1 | . 1 Recall Investigation 1 | . 1 Fabricator Hacks . | . . Repair Station Hacks . | . . Recycling Unit Hacks 3 | . 3 Recycle Component 3 | . 3 Scanalyzer . | . . Garrison Access Hacks . | . . Unauthorized Hacks . | . . Terminals . | . . Fabricators . | . . Repair Stations . | . . Recycling Units . | . . Scanalyzers . | . . Garrison Access . | . . Data Cores Recovered . | . . Used . | . . Hacking Detections 3 | . 3 Full Trace Events 3 | . 3 Feedback Events . | . . Feedback Blocked . | . . Robot Schematics Acquired . | . . Robots Built . | . . Authchips . | . . Time . | . . Total Robot Build Rating . | . . Part Schematics Acquired . | . . Parts Built . | . . Authchips . | . . Time . | . . Total Part Build Rating . | . . Parts Repaired . | . . Time . | . . Parts Recycled 3 | . 3 Recycled Matter . | . . Retrieved Matter . | . . Retrieved Components . | . . Parts Scanalyzed . | . . Part Schematics Acquired . | . . Parts Damaged . | . . Bothacking | -11 -10 ------------ Run | Yrd Mat Used RIF Installer . | . . Robots Hacked . | . . Non-combat . | . . Combat . | . . Robot Hacks Applied . | . . Relay Couplers Released . | . . Fabnet Peak Effective % . | . . Robots Rewired . | . . Allies Hacked . | . . Hacks Repelled . | . . Allies | -11 -10 -------- Run | Yrd Mat Total Allies . | . . Largest Group . | . . Highest-Rated Group . | . . Highest-Rated Ally . | . . Total Orders . | . . Ally Attacks . | . . Total Damage . | . . Kills . | . . Allies Corrupted . | . . Allies Melted . | . . Intel | -11 -10 ------- Run | Yrd Mat Robot Analysis Total . | . . Derelict Logs Recovered . | . . Drone Launches . | . . Drone Recoveries . | . . Exploration | -11 -10 ------------- Run | Yrd Mat Turns Passed 4897 | 4504 393 Spaces Moved 1358 | 1152 206 Core 14 | 10 4 Treads . | . . Legs 1344 | 1142 202 Wheels . | . . Hover . | . . Flight . | . . Fastest Speed 50 | 50 120 Average Speed 120 | 120 122 Slowest Speed 250 | 250 200 Overloaded Moves . | . . Propulsion Burnouts . | . . Robots Hopped . | . . Cave-ins Triggered . | . . Exploration Rate (%) 66 | 91 42 Regions Visited 1 Branch Regions . Pre-discovered Areas . | . . Known Exits Taken . | . . Unknown Exits Taken 1 | 1 . Scrap Searched . | . . Spaces Dug . | . . Terrain Destroyed . | . . Melee . | . . Projectile . | . . AOE . | . . Terrain Rammed . | . . Walls Destroyed . | . . Machines Disabled . | . . Actions | -11 -10 --------- Run | Yrd Mat Total 4557 | 4267 290 Wait 3107 | 3104 3 Move 1357 | 1151 206 Hop . | . . Pick Up 26 | 5 21 Fast Attach 6 | 6 . Attach 5 | . 5 Detach . | . . Swap 1 | 1 . Drop 16 | . 16 Fire 30 | . 30 Melee 6 | . 6 Ram . | . . Kick 3 | . 3 Crush . | . . Escape Stasis . | . . Rewire . | . . Trap . | . . Miscellaneous . | . . Route ------- -11/Scrapyard -10/Materials (discovered 1 exit: [*Min]) History --------- Turn | Location | Event 24 | -11/Scrapyard | Discovered new exit (range 16) 4505 | -11/Scrapyard | Entered Materials 4506 | -10/Materials | Build established: Mutant 4628 | -10/Materials | Discovered new exit (range 12) 4820 | -10/Materials | Core integrity fell below 50% 4856 | -10/Materials | Core integrity fell below 20% 4898 | -10/Materials | Destroyed by G-34 Mercenary with Small Laser Last Messages --------------- 04846_ G-34 Mercenary destroyed. 04847_ K-01 Serf collects debris. 04852_ U-05 Engineer works on Processing Tank. 04853_ K-01 Serf collects debris. 04855_ Triggered Alarm Trap. 04855_ An alarm sounds. 04855_ ALERT: Alarm triggered, dispatching investigation squad. 04859_ U-05 Engineer lays Concrete. 04859_ Acquired Mining Claw. 04862_ U-05 Engineer lays Concrete. 04865_ Connecting with Terminal... >>Recall(Investigation) Establishing remote squad link... Recalled investigation squad FTDID8NY4Q. 04865_ ALERT: Suspicious activity at Terminal M008. Dispatching Investigation squad. [Achievement: Party Time] 04866_ U-05 Engineer lays Concrete. 04870_ U-05 Engineer works on Processing Tank. 04872_ Aluminum Leg destroyed. Map ----- +----------------------------------------------------+ | ???????????????# """ """ #??# [ | | ???????????????# "Y" """ #??# ## "##+## | | ???????????????#[ """ #??# ## " ="#???? | | ???????????????# [ #### ##"""""""#???? | | ???????????????# [ [ /[ ##########???? | | ???????????????# ! #### # #?????? | | ???????????????# =[ #??#! # #?????? | | ??????????????######+########% # * #?????? | | ??????????????+ % =! + #?????? | | ?????#????????##### [% # "T" #?????? | | ?????# ???????????# # """ #?????? | | ?????# ??????###### ###/#############?????? | | ?????# ?????#"""## # #??????????????? | | ??#### ###+##"T"## # #??????????????? | | ?##! #""" #??????????????? | | ?#! #"R #??????????????? | | ?#! #""" #??????????????? | | ?#! # #??????????????? | | ?#! """" !########??????????????? | | ??#! """" #?????????????????????? | | ??#### """ #############?????????? | | ?????# ????????? | | ?????# ????????? | | ?????# g ????????? | | ?????# ####"T"######g#######???????????????? | | ?????# ????#"""#??# @ #??????????????????? | | ?????# ?????#####??# """ #??????????????????? | | ?????#?????????????# """ #??????????????????? | | ???????????????????# """ #??????????????????? | | ???????????????????# #??????????????????? | | ???????????????????# #??????????????????? | | ???????????????????########??????????????????? | | ?????????????????????????????????????????????? | | ?????????????????????????????????????????????? | | ?????????????????????????????????????????????? | | ?????????????????????????????????????????????? | | ?????????????????????????????????????????????? | | ?????????????????????????????????????????????? | | | | | | | | | | | | | | | | | | | | | | | | | +----------------------------------------------------+ Best States ------------- Heat Dissipation 25 Energy Generation 14 Energy Capacity 250 Matter Stores 300 Matter Capacity 300 Sight Range 16 Terrain Scan Density 10 Evasion (%) 55 Item Schematics ----------------- None Robot Schematics ------------------ None Fabricated ------------ Nothing Alien Tech Used ----------------- None Achievements -------------- Party Time Challenges ------------ None Game ------ Seed WeaponSlugBarrier Manual? 0 Play Time 00:15:35 Cumulative 10.1 hours Start 2024.12.11 @ 17:41:43 End 2024.12.11 @ 17:52:32 Sessions 1 Manual Loads 0 Difficulty Rogue Special Mode None Game No. 15 Rogue 9 Adventurer 6 Explorer 0 Win Type - Total 0 Types 0/0/0/0/0/0/0/0/0 Lore% 11 Gallery% 17 Achievement% 18 Wizard Run 0 Options --------- Layout 1 ASCII 0 Keyboard 0 Movement Numpad Keybinds 0 Fullscreen 1 Font 32/SmallcapsGlow Map View 77x35 Zoom Use 0% Tactical HUD 1 Map Filters NONE Filters NONE Steam 1 RUN: 15654a38-fc59-4413-a225-3e90e012b2ba